bitfinex/quotes_BTCUSD_20251124
["timestamp","ask_amount","ask_price","bid_price","bid_amount"]
[1763994138660,2.39501568,86151.0,86150.0,0.00010426]
[1763994141596,2.40237568,86151.0,86150.0,0.00010426]
[1763994142078,2.40237568,86151.0,86150.0,0.00067976]
[1763994146206,2.37928568,86151.0,86150.0,0.00067976]
[1763994146433,0.34455568,86151.0,86150.0,0.01198976]
[1763994147568,0.34456952,86151.0,86150.0,0.01198976]
[1763994148162,0.34456952,86151.0,86150.0,0.01298976]
[1763994148561,0.34456952,86151.0,86150.0,0.02529976]
[1763994148768,0.34456952,86151.0,86150.0,0.01398976]
[1763994150285,0.323,86151.0,86150.0,0.02529976]
[1763994150496,2.0,86165.0,86150.0,0.02529976]
[1763994150717,0.323,86162.0,86151.0,0.01131]
[1763994150923,2.02158078,86161.0,86160.0,0.00025575]
[1763994151331,2.34458078,86161.0,86160.0,0.02287575]
[1763994154414,0.34458078,86161.0,86160.0,0.03418575]
[1763994154866,0.34458078,86161.0,86160.0,0.02287575]
[1763994155013,0.34458078,86161.0,86160.0,0.01156575]
[1763994155638,0.34458078,86161.0,86160.0,0.03418575]
[1763994156814,0.99385609,86170.0,86160.0,0.03418575]
[1763994157016,0.02157165,86169.0,86161.0,0.01131]
[1763994157245,0.02157165,86168.0,86161.0,0.01131]
[1763994157422,0.02157165,86167.0,86161.0,0.01131]
[1763994157675,0.323,86169.0,86167.0,0.01131]
[1763994158772,2.0,86175.0,86167.0,0.01131]
[1763994158970,0.323,86172.0,86167.0,0.01131]
[1763994159194,0.323,86169.0,86167.0,0.01131]
[1763994159358,2.0,86175.0,86167.0,0.01131]
[1763994159552,2.0,86171.0,86167.0,0.01131]
[1763994159766,0.34455649,86170.0,86167.0,0.01131]
[1763994159968,0.323,86170.0,86167.0,0.01131]
[1763994160385,0.323,86170.0,86160.0,0.01156575]
[1763994160667,1.71337902,86170.0,86160.0,0.01156575]
[1763994160872,0.02309,86186.0,86169.0,0.01131]
[1763994161074,0.323,86175.0,86174.0,0.01131]
[1763994161303,0.34455243,86175.0,86174.0,0.01131]
[1763994161830,0.323,86175.0,86174.0,0.01131]
[1763994162173,0.01189,86182.0,86174.0,0.01131]
[1763994162388,2.0,86179.0,86174.0,0.01131]
[1763994162587,2.0,86179.0,86174.0,0.01231]
[1763994163182,2.0,86179.0,86174.0,0.01331]
[1763994163955,2.0,86179.0,86174.0,0.01131]
[1763994164938,2.0,86179.0,86166.0,0.00736]
[1763994165138,0.323,86175.0,86166.0,0.01867]
[1763994165712,0.323,86175.0,86174.0,0.01131]
[1763994165864,0.323,86175.0,86166.0,0.00736]
[1763994166079,0.323,86175.0,86166.0,0.01867]
[1763994166268,0.323,86175.0,86174.0,0.01131]
[1763994166450,0.323,86175.0,86166.0,0.01867]
[1763994166651,0.323,86175.0,86166.0,0.00736]
[1763994167036,0.323,86175.0,86166.0,0.00836]
[1763994167839,0.323,86179.0,86166.0,0.00836]
[1763994168045,0.14018271,86183.0,86166.0,0.00836]
[1763994168046,0.323,86175.0,86166.0,0.00836]
[1763994168289,0.323,86175.0,86166.0,0.00936]
[1763994168675,0.33514,86175.0,86166.0,0.00836]
[1763994169228,0.02266,86174.0,86166.0,0.00736]
[1763994169639,0.02266,86174.0,86159.0,0.00736]
[1763994169924,0.323,86169.0,86159.0,0.00736]
[1763994170256,0.323,86169.0,86160.0,0.02287575]
[1763994170459,0.02775,86161.0,86160.0,0.00025575]
[1763994170705,2.35075,86161.0,86160.0,0.00025575]
[1763994170913,2.37341,86161.0,86160.0,0.00025575]
[1763994171115,2.37341,86161.0,86160.0,0.00225575]
[1763994171316,2.37341,86161.0,86160.0,0.00125575]
[1763994172278,2.37341,86161.0,86160.0,0.00025575]
[1763994175453,2.39495243,86161.0,86160.0,0.00025575]
[1763994176872,2.34454243,86161.0,86160.0,0.00025575]
[1763994177084,2.0,86169.0,86160.0,0.02287575]
[1763994177263,0.0215494,86168.0,86160.0,0.02287575]
[1763994177478,0.59272881,86170.0,86161.0,0.01131]
[1763994177479,0.323,86169.0,86161.0,0.01131]
[1763994177687,0.323,86169.0,86167.0,0.01131]
[1763994177897,0.01881851,86184.0,86162.0,0.02321208]
[1763994177898,2.0,86178.0,86162.0,0.02321208]
[1763994178104,0.51131,86179.0,86162.0,0.02321208]
[1763994178105,2.0,86176.0,86169.0,0.01131]
[1763994178322,0.59272881,86180.0,86169.0,0.01131]
[1763994178323,0.323,86175.0,86169.0,0.01131]
[1763994179496,0.323,86179.0,86169.0,0.01231]
[1763994179696,0.323,86175.0,86169.0,0.01231]
[1763994180030,0.323,86175.0,86169.0,0.01331]
[1763994180423,0.323,86175.0,86174.0,0.01131]
[1763994180624,0.323,86175.0,86174.0,0.02262]
[1763994180898,0.323,86177.0,86174.0,0.01131]
[1763994181531,0.32286084,86177.0,86174.0,0.01131]
[1763994181973,0.59272881,86180.0,86174.0,0.01131]
[1763994182229,0.02156226,86179.0,86174.0,0.01131]
[1763994182430,0.59272881,86180.0,86174.0,0.01231]
[1763994182431,0.02156226,86178.0,86174.0,0.01231]
[1763994182641,0.02156226,86177.0,86174.0,0.01131]
[1763994182861,2.0,86179.0,86174.0,0.01131]
[1763994183065,0.02156136,86178.0,86174.0,0.01131]
[1763994183269,0.02156136,86177.0,86174.0,0.01131]
[1763994183472,0.59272881,86180.0,86174.0,0.01131]
[1763994183473,2.323,86179.0,86174.0,0.01131]
[1763994183679,0.01561,86175.0,86164.0,0.00736]
[1763994183886,0.323,86173.0,86164.0,0.00736]
[1763994184714,0.323,86173.0,86164.0,0.01867]
[1763994185151,0.323,86173.0,86164.0,0.00736]
[1763994185364,0.323,86173.0,86160.0,0.00025575]
[1763994185365,0.02775,86165.0,86160.0,0.00025575]
[1763994185578,0.02775,86165.0,86164.0,0.001]
[1763994185784,0.323,86171.0,86160.0,0.00025575]
[1763994186012,0.60486881,86174.0,86164.0,0.002]
[1763994186013,0.323,86167.0,86164.0,0.002]
[1763994186188,0.323,86173.0,86164.0,0.001]
[1763994186420,0.323,86169.0,86160.0,0.00025575]
[1763994186624,0.323,86167.0,86160.0,0.00125575]
[1763994186828,0.323,86167.0,86164.0,0.001]
[1763994187764,0.323,86171.0,86164.0,0.001]
[1763994187967,0.323,86167.0,86164.0,0.001]
[1763994188161,0.323,86167.0,86160.0,0.00025575]
[1763994188367,0.323,86167.0,86164.0,0.001]
[1763994188602,0.323,86167.0,86166.0,0.01131]
[1763994188816,0.01214,86183.0,86166.0,0.01131]
[1763994189030,0.00154246,86201.0,86168.0,0.10433271]
[1763994189031,0.02155895,86182.0,86168.0,0.10433271]
[1763994189247,0.02155895,86182.0,86169.0,0.00736]
[1763994189470,0.323,86186.0,86181.0,0.02262]
[1763994189686,0.02155898,86185.0,86181.0,0.02262]
[1763994189904,0.323,86186.0,86181.0,0.02262]
[1763994190538,0.3233911,86186.0,86181.0,0.02262]
[1763994191225,0.3233911,86186.0,86185.0,0.01131]
[1763994191443,0.0003911,86186.0,86185.0,0.01131]
[1763994194012,0.0003911,86186.0,86181.0,0.01131]
[1763994199799,0.02773,86182.0,86173.0,0.01131]
[1763994200003,0.35073,86182.0,86173.0,0.01131]
[1763994200654,0.01228,86174.0,86169.0,0.00736]
[1763994201338,0.69496892,86179.0,86169.0,0.00736]
[1763994202787,0.323,86178.0,86169.0,0.00736]
[1763994203379,0.323,86178.0,86177.0,0.01131]
[1763994204304,0.323,86182.0,86177.0,0.01131]
[1763994204462,0.323,86180.0,86177.0,0.01131]
[1763994206487,0.02156032,86179.0,86177.0,0.01131]
[1763994206741,0.323,86184.0,86170.0,0.01131]
[1763994206929,0.60473266,86180.0,86169.0,0.00736]
[1763994207100,0.34456104,86179.0,86169.0,0.00736]
[1763994207305,0.02156723,86178.0,86169.0,0.00736]
[1763994207682,0.323,86179.0,86169.0,0.00736]
[1763994207892,0.02156723,86178.0,86169.0,0.00736]
[1763994208063,0.323,86179.0,86169.0,0.00736]
[1763994208271,0.02156723,86178.0,86169.0,0.00736]
[1763994208472,0.323,86179.0,86169.0,0.00736]
[1763994208635,0.02156756,86178.0,86169.0,0.00736]
[1763994208837,0.323,86179.0,86169.0,0.00736]
[1763994209064,0.323,86179.0,86178.0,0.01131]
[1763994209264,0.323,86179.0,86170.0,0.01131]
[1763994209265,0.34456777,86179.0,86170.0,0.01131]
[1763994209467,0.02156777,86178.0,86170.0,0.01131]
[1763994209625,0.02156777,86178.0,86169.0,0.00736]
[1763994212269,0.02156777,86178.0,86177.0,0.01131]
[1763994212490,0.59245266,86220.0,86185.0,0.01]
[1763994212702,0.01228,86223.0,86186.0,0.05210249]
[1763994212914,0.01228,86223.0,86200.0,0.02184]
[1763994212915,0.00162411,86201.0,86200.0,0.02184]
[1763994213114,0.00162411,86201.0,86200.0,0.01092]
[1763994213314,0.00162411,86201.0,86200.0,0.0292]
[1763994213608,0.00162411,86201.0,86200.0,0.04012]
[1763994214062,2.0,86219.0,86200.0,0.0292]
[1763994214272,0.35459908,86220.0,86201.0,0.01092]
[1763994214273,2.0,86217.0,86201.0,0.01092]
[1763994214478,2.0,86219.0,86201.0,0.01092]
[1763994214678,2.0,86217.0,86201.0,0.01092]
[1763994214804,2.0,86219.0,86201.0,0.01092]
[1763994215008,0.10433271,86253.0,86219.0,0.01092]
[1763994215009,0.60473266,86230.0,86219.0,0.01092]
[1763994215225,2.0,86228.0,86222.0,0.01092]
[1763994215524,2.0,86229.0,86222.0,0.01092]
[1763994215687,0.323,86227.0,86222.0,0.01092]
[1763994216060,2.0,86229.0,86222.0,0.01092]
[1763994216266,0.323,86228.0,86222.0,0.01092]
[1763994216466,0.323,86229.0,86222.0,0.01092]
[1763994216677,0.323,86227.0,86222.0,0.01092]
[1763994217300,0.323,86227.0,86226.0,0.01092]
[1763994217674,0.0182028,86236.0,86226.0,0.02184]
[1763994217864,0.02150747,86235.0,86226.0,0.02184]
[1763994218061,0.0182028,86236.0,86235.0,0.00992]
[1763994218263,0.0004,86240.0,86235.0,0.00992]
[1763994218465,0.323,86238.0,86235.0,0.00992]
[1763994218909,0.323,86238.0,86225.0,0.00992]
[1763994218910,0.323,86234.0,86225.0,0.00992]
[1763994219111,2.0,86235.0,86229.0,0.00736]
[1763994219112,2.0,86231.0,86229.0,0.00736]
[1763994219266,2.0,86231.0,86225.0,0.00992]
[1763994219470,0.323,86230.0,86225.0,0.00992]
[1763994220569,0.99183595,86235.0,86225.0,0.00992]
[1763994220807,0.323,86230.0,86225.0,0.00992]
[1763994221336,0.00079838,86226.0,86225.0,0.00992]
[1763994222558,0.00079838,86226.0,86225.0,0.01984]
[1763994223966,0.00079838,86226.0,86225.0,0.00992]
[1763994224924,0.02221893,86226.0,86225.0,0.01984]
[1763994225124,0.02221893,86226.0,86225.0,0.00992]
[1763994225969,0.02221893,86226.0,86220.0,0.01728]
[1763994226145,0.02142055,86225.0,86220.0,0.01728]
[1763994226298,0.02142055,86224.0,86220.0,0.01728]
[1763994226562,0.01152,86227.0,86220.0,0.01728]
[1763994226752,0.02141165,86226.0,86220.0,0.00992]
[1763994226946,0.02141165,86225.0,86220.0,0.00992]
[1763994227147,0.02141165,86224.0,86220.0,0.00992]
[1763994227386,0.02140946,86223.0,86220.0,0.00992]
[1763994227600,0.01152,86227.0,86220.0,0.00992]
[1763994227759,0.02140949,86226.0,86220.0,0.00992]
[1763994227972,0.323,86229.0,86220.0,0.00992]
[1763994227973,0.02140949,86225.0,86220.0,0.00992]
[1763994228193,0.02140949,86224.0,86220.0,0.00992]
[1763994228396,0.02140949,86223.0,86220.0,0.00992]
[1763994228594,0.02140949,86222.0,86220.0,0.00992]
[1763994228798,0.323,86227.0,86220.0,0.00992]
[1763994229036,0.02140795,86226.0,86220.0,0.00992]
[1763994229254,0.02140795,86225.0,86220.0,0.00992]
[1763994229455,0.02140795,86224.0,86220.0,0.00992]
[1763994229658,0.02140795,86223.0,86220.0,0.00992]
[1763994229801,0.02140795,86222.0,86220.0,0.00992]
[1763994230008,0.323,86229.0,86220.0,0.00992]
[1763994230218,0.02140486,86228.0,86221.0,0.00992]
[1763994230428,0.323,86229.0,86221.0,0.00992]
[1763994230429,0.02140486,86227.0,86221.0,0.00992]
[1763994230622,0.02140486,86226.0,86220.0,0.00992]
[1763994230880,0.02140486,86225.0,86222.0,0.00992]
[1763994231078,0.02140486,86224.0,86222.0,0.00992]
[1763994231311,0.51820255,86236.0,86222.0,0.00992]
[1763994231312,0.02140837,86223.0,86222.0,0.00992]
[1763994231749,0.02140837,86223.0,86222.0,0.01984]
[1763994232219,0.02211097,86223.0,86222.0,0.01984]
[1763994237921,0.02211097,86223.0,86222.0,0.00992]
[1763994238446,0.02211097,86223.0,86222.0,0.01984]
[1763994240709,0.02211097,86223.0,86222.0,0.00992]
[1763994240913,0.03454097,86223.0,86220.0,0.00992]
[1763994241135,0.02140837,86222.0,86220.0,0.00992]
[1763994241301,0.02140837,86221.0,86220.0,0.00992]
[1763994241863,0.02140837,86221.0,86220.0,0.01984]
[1763994242205,0.02140837,86221.0,86220.0,0.01728]
[1763994245177,0.02140837,86221.0,86220.0,0.03712]
[1763994246386,0.02204711,86221.0,86220.0,0.03712]
[1763994251041,0.02204711,86221.0,86220.0,0.01728]
[1763994251472,0.52204711,86221.0,86220.0,0.01728]
[1763994253036,0.52204711,86221.0,86220.0,0.0272]
[1763994253179,0.52204711,86221.0,86220.0,0.03712]
[1763994253580,0.52204711,86221.0,86220.0,0.01984]
[1763994253916,0.52204711,86221.0,86220.0,0.0272]
[1763994254503,0.52204711,86221.0,86220.0,0.01984]
[1763994254712,0.52204711,86221.0,86220.0,0.0272]
[1763994256942,0.52204711,86221.0,86220.0,0.00992]
[1763994257281,0.52204711,86221.0,86194.0,0.29329637]
[1763994257282,0.323,86218.0,86214.0,0.00736]
[1763994257607,0.01662,86215.0,86214.0,0.00736]
[1763994257741,0.03847552,86215.0,86214.0,0.00736]
[1763994257971,0.02185552,86215.0,86214.0,0.00736]
[1763994258357,0.02185552,86215.0,86214.0,0.01728]
[1763994258743,0.02185552,86215.0,86214.0,0.00736]
[1763994258942,0.02185552,86215.0,86214.0,0.01728]
[1763994260140,0.02185552,86215.0,86214.0,0.00736]
[1763994260841,0.02185552,86215.0,86214.0,0.01728]
[1763994261361,0.00044715,86215.0,86214.0,0.0272]
[1763994262532,0.00044715,86215.0,86214.0,0.01728]
[1763994263594,0.00044715,86215.0,86214.0,0.00736]
[1763994263977,0.00044715,86215.0,86207.0,0.00992]
[1763994264146,0.323,86220.0,86214.0,0.00736]
[1763994265800,0.01662,86215.0,86207.0,0.00992]
[1763994266004,0.02823,86208.0,86199.0,0.00992]
[1763994266232,0.02823,86208.0,86205.0,0.00736]
[1763994266233,0.35123,86208.0,86205.0,0.00736]
[1763994266433,0.01662,86206.0,86205.0,0.00736]
[1763994266606,0.33461,86208.0,86205.0,0.00736]
[1763994266607,0.323,86208.0,86205.0,0.00736]
[1763994267394,0.01161,86211.0,86205.0,0.00736]
[1763994269480,0.00025553,86209.0,86205.0,0.00736]
[1763994270855,0.00025553,86209.0,86192.0,0.00992]
[1763994270856,0.323,86205.0,86192.0,0.00992]
[1763994271060,2.0,86199.0,86198.0,0.00736]
[1763994271181,2.323,86199.0,86198.0,0.00736]
[1763994271383,2.36411,86199.0,86198.0,0.00736]
[1763994272972,0.323,86196.0,86187.0,0.00992]
[1763994273203,2.0,86192.0,86184.0,0.00736]
[1763994273379,0.323,86191.0,86184.0,0.00736]
[1763994273532,0.33461,86191.0,86184.0,0.00736]
[1763994275084,0.01261,86191.0,86184.0,0.00736]
[1763994275909,0.01662,86185.0,86184.0,0.00736]
[1763994277085,0.04111,86185.0,86184.0,0.00736]
[1763994279157,0.04111,86185.0,86174.0,0.00736]
[1763994279300,0.02449,86184.0,86174.0,0.00736]
[1763994279500,0.323,86183.0,86174.0,0.00736]
[1763994279705,0.33461,86183.0,86174.0,0.00736]
[1763994280265,0.323,86181.0,86174.0,0.00736]
[1763994280695,0.01161,86203.0,86180.0,0.00992]
[1763994280859,0.01161,86203.0,86182.0,0.00992]
[1763994280860,2.99233704,86200.0,86182.0,0.00992]
[1763994281054,0.323,86191.0,86176.0,0.00992]
[1763994281255,0.001,86183.0,86174.0,0.00736]
[1763994282593,0.01161,86185.0,86174.0,0.00736]
[1763994283416,0.323,86183.0,86174.0,0.00736]
[1763994285310,0.323,86181.0,86174.0,0.00736]
[1763994287875,0.323,86181.0,86180.0,0.00992]
[1763994288097,0.5922925,86190.0,86180.0,0.00992]
[1763994288098,0.323,86189.0,86180.0,0.00992]
[1763994288487,0.323,86189.0,86174.0,0.00736]
[1763994288488,0.323,86189.0,86181.0,0.00992]
[1763994288726,0.6150225,86200.0,86181.0,0.00992]
[1763994288845,2.0,86198.0,86181.0,0.00992]
[1763994289048,0.02144897,86197.0,86181.0,0.00992]
[1763994289382,0.10433271,86205.0,86174.0,0.00736]
[1763994289383,0.02792,86182.0,86174.0,0.00736]
[1763994290200,0.02792,86182.0,86173.0,0.00992]
[1763994290603,0.35092,86182.0,86173.0,0.00992]
[1763994293571,0.69502281,86183.0,86173.0,0.00992]
[1763994294217,0.02146948,86182.0,86173.0,0.00992]
[1763994294453,0.69502281,86183.0,86173.0,0.00992]
[1763994294688,0.02147247,86182.0,86173.0,0.00992]
[1763994294891,0.69502281,86183.0,86173.0,0.00992]
[1763994295065,0.02147236,86182.0,86173.0,0.00992]
[1763994295289,0.02147236,86181.0,86173.0,0.00992]
[1763994295445,0.02147236,86180.0,86173.0,0.00992]
[1763994295807,0.69502281,86183.0,86173.0,0.00992]
[1763994296081,0.02148316,86182.0,86173.0,0.00992]
[1763994296309,0.02148316,86181.0,86173.0,0.00992]
[1763994296433,0.02148316,86180.0,86173.0,0.00992]
[1763994296630,1.39004562,86183.0,86173.0,0.00992]
[1763994296830,0.02148731,86182.0,86173.0,0.00992]
[1763994297081,0.02148731,86181.0,86173.0,0.00992]
[1763994297305,0.02148731,86180.0,86173.0,0.00992]
[1763994297507,0.02148731,86179.0,86173.0,0.00992]
[1763994297637,1.39004562,86183.0,86173.0,0.00992]
[1763994297839,0.0214941,86182.0,86173.0,0.00992]
[1763994298090,1.39004562,86183.0,86173.0,0.00992]
[1763994298091,0.0214941,86181.0,86173.0,0.00992]
[1763994298290,0.0214941,86180.0,86173.0,0.00992]
[1763994298435,1.39004562,86183.0,86173.0,0.01002426]
[1763994298436,0.0214941,86179.0,86173.0,0.01002426]
[1763994298642,0.0214941,86178.0,86173.0,0.01002426]
[1763994298841,0.0214941,86177.0,86173.0,0.01002426]
[1763994299060,2.0,86182.0,86173.0,0.01002426]
[1763994299280,0.02150757,86181.0,86173.0,0.01002426]
[1763994299480,0.02150757,86180.0,86173.0,0.01002426]
[1763994299680,0.02150757,86179.0,86173.0,0.01002426]
[1763994299886,0.02150757,86178.0,86173.0,0.01002426]
[1763994300068,0.02150757,86177.0,86173.0,0.01002426]
[1763994300271,0.02273,86206.0,86174.0,0.15234156]
[1763994300549,0.02273,86206.0,86173.0,0.01002426]
[1763994300550,0.69502281,86184.0,86182.0,0.00931]
[1763994300760,0.02151783,86183.0,86182.0,0.00931]
[1763994300969,0.02151783,86183.0,86177.0,0.00931]
[1763994301195,0.02151783,86182.0,86177.0,0.00931]
[1763994301358,0.02151783,86181.0,86177.0,0.00931]
[1763994301603,0.02151783,86180.0,86177.0,0.00931]
[1763994301817,0.02151783,86179.0,86177.0,0.00931]
[1763994302074,0.0117,86186.0,86177.0,0.00931]
[1763994302281,0.02152459,86185.0,86177.0,0.00931]
[1763994302484,0.0117,86186.0,86177.0,0.00931]
[1763994302485,0.02152459,86184.0,86177.0,0.00931]
[1763994302715,0.02152459,86184.0,86173.0,0.01002426]
[1763994302716,0.02792,86178.0,86173.0,0.00010426]
[1763994302921,0.02152459,86177.0,86173.0,0.00010426]
[1763994303128,0.02399,86174.0,86173.0,0.00010426]
[1763994303334,0.38012108,86174.0,86173.0,0.00010426]
[1763994303556,2.40338476,86174.0,86173.0,0.00010426]
[1763994304377,2.40337014,86174.0,86173.0,0.00010426]
[1763994305082,2.40437014,86174.0,86173.0,0.00010426]
[1763994305417,2.40383646,86174.0,86173.0,0.00010426]
[1763994305604,2.40110848,86174.0,86173.0,0.00010426]
[1763994306210,2.51632979,86174.0,86173.0,0.00010426]
[1763994306477,2.51632979,86174.0,86130.0,0.0002]
[1763994306478,0.34299998,86170.0,86130.0,0.0002]
[1763994306677,2.45516271,86149.0,86130.0,0.0002]
[1763994306894,2.48403268,86149.0,86130.0,0.0002]
[1763994307111,2.50729636,86149.0,86130.0,0.0002]
[1763994307316,2.51195149,86149.0,86130.0,0.0002]
[1763994309169,2.50405781,86149.0,86130.0,0.0002]
[1763994309372,2.50405781,86149.0,86133.0,0.00931]
[1763994309784,2.15932781,86149.0,86143.0,0.00931]
[1763994310187,2.48132781,86149.0,86143.0,0.00931]
[1763994310391,2.0261651,86149.0,86143.0,0.00931]
[1763994310652,2.0271651,86149.0,86148.0,0.0174924]
[1763994310856,2.0281651,86149.0,86148.0,0.0021824]
[1763994311038,2.0271651,86149.0,86148.0,0.0021824]
[1763994311213,2.0651151,86149.0,86148.0,0.0021824]
[1763994311798,2.3881151,86149.0,86148.0,0.0021824]
[1763994313831,2.51069641,86149.0,86148.0,0.0021824]
[1763994314029,2.39700879,86149.0,86148.0,0.0021824]
[1763994314813,2.39600879,86149.0,86148.0,0.0021824]
[1763994315183,2.3964751,86149.0,86148.0,0.0021824]
[1763994315966,2.0271651,86149.0,86148.0,0.0021824]
[1763994316099,2.0433551,86149.0,86148.0,0.0021824]
[1763994316299,2.3895051,86149.0,86148.0,0.0021824]
[1763994316644,2.3875051,86149.0,86148.0,0.0021824]
[1763994316863,2.3885051,86149.0,86148.0,0.0021824]
[1763994317048,2.3663551,86149.0,86148.0,0.0021824]
[1763994317251,2.3653551,86149.0,86148.0,0.0021824]
[1763994317542,2.3643551,86149.0,86148.0,0.0021824]
[1763994319908,2.35274744,86149.0,86148.0,0.0021824]
[1763994320525,2.01455744,86149.0,86148.0,0.0021824]
[1763994320724,2.03073744,86149.0,86148.0,0.0021824]
[1763994320925,2.37750744,86149.0,86148.0,0.0021824]
[1763994322286,2.33755744,86149.0,86148.0,0.0021824]
[1763994323185,2.33855744,86149.0,86148.0,0.0021824]
[1763994323731,2.33855744,86149.0,86148.0,0.0179224]
[1763994324150,0.3501651,86149.0,86148.0,0.0179224]
[1763994324547,0.3491651,86149.0,86148.0,0.0179224]
[1763994324720,0.3491651,86149.0,86148.0,0.0021824]
[1763994326725,0.3491651,86149.0,86148.0,0.0025735]
[1763994330620,0.34450997,86149.0,86148.0,0.0025735]
[1763994330902,0.02150997,86149.0,86148.0,0.0428335]
[1763994331095,0.69744579,86170.0,86148.0,0.0428335]
[1763994331340,0.69744579,86170.0,86150.0,0.01574]
[1763994331341,0.02452,86163.0,86150.0,0.01574]
[1763994331516,0.59311308,86160.0,86150.0,0.01574]
[1763994331750,0.59311308,86160.0,86148.0,0.0025735]
[1763994331751,2.0,86158.0,86148.0,0.0025735]
[1763994331905,0.02143496,86157.0,86148.0,0.0025735]
[1763994332111,0.02143496,86156.0,86148.0,0.0025735]
[1763994332340,0.02146312,86155.0,86148.0,0.0025735]
[1763994332544,0.02146312,86154.0,86148.0,0.0025735]
[1763994332748,0.02146312,86153.0,86148.0,0.0025735]
[1763994332952,0.02146312,86152.0,86148.0,0.0025735]
[1763994333152,0.02146312,86151.0,86148.0,0.0025735]
[1763994333357,2.0,86159.0,86151.0,0.01574]
[1763994333623,0.02147329,86158.0,86152.0,0.02452]
[1763994333830,0.02147329,86157.0,86152.0,0.02452]
[1763994334033,0.02147329,86156.0,86152.0,0.02452]
[1763994334161,0.02147329,86155.0,86152.0,0.02452]
[1763994334516,0.02147329,86154.0,86152.0,0.02452]
[1763994334722,0.02147329,86153.0,86152.0,0.02452]
[1763994335060,2.0,86159.0,86152.0,0.04026]
[1763994335266,0.02147329,86158.0,86152.0,0.04026]
[1763994335461,0.02147329,86157.0,86152.0,0.04026]
[1763994335678,0.02147329,86156.0,86152.0,0.04026]
[1763994336001,0.02147329,86155.0,86152.0,0.04026]
[1763994336202,0.02147329,86154.0,86152.0,0.04026]
[1763994336405,0.02147329,86153.0,86152.0,0.04026]
[1763994336811,0.02147329,86158.0,86152.0,0.01574]
[1763994337038,0.02147329,86157.0,86148.0,0.0025735]
[1763994337277,2.0,86155.0,86148.0,0.0025735]
[1763994337459,0.02147329,86154.0,86148.0,0.0025735]
[1763994337792,0.02147329,86153.0,86148.0,0.0270935]
[1763994338005,0.02147329,86152.0,86148.0,0.0270935]
[1763994338211,2.0,86156.0,86152.0,0.01574]
[1763994338414,0.02148586,86155.0,86152.0,0.01574]
[1763994338619,0.02148586,86154.0,86152.0,0.01574]
[1763994338874,0.02148586,86153.0,86152.0,0.01574]
[1763994339872,0.02148586,86153.0,86152.0,0.04026]
[1763994340692,0.02148586,86153.0,86152.0,0.01574]
[1763994340890,0.17514528,86159.0,86152.0,0.01574]
[1763994341102,0.01574,86159.0,86152.0,0.01574]
[1763994341305,2.0,86158.0,86152.0,0.01574]
[1763994341668,2.0,86161.0,86152.0,0.01574]
[1763994342046,2.0,86161.0,86148.0,0.0025735]
[1763994342047,0.10433271,86157.0,86148.0,0.0025735]
[1763994342273,2.0,86156.0,86148.0,0.0025735]
[1763994343360,0.028,86149.0,86148.0,0.0025735]
[1763994343781,2.0,86154.0,86148.0,0.0025735]
[1763994345949,2.0,86150.0,86148.0,0.0025735]
[1763994346822,0.323,86153.0,86148.0,0.0025735]
[1763994347020,0.323,86151.0,86148.0,0.0025735]
[1763994347225,0.34752,86156.0,86148.0,0.0273535]
[1763994347450,2.323,86153.0,86152.0,0.01163]
[1763994347860,2.323,86153.0,86152.0,0.02702]
[1763994348068,0.001,86153.0,86152.0,0.05088]
[1763994348266,0.323,86159.0,86152.0,0.05088]
[1763994348442,0.323,86159.0,86153.0,0.02386]
[1763994348787,0.323,86159.0,86158.0,0.01539]
[1763994349565,0.323,86159.0,86158.0,0.03925]
[1763994349765,0.323,86159.0,86158.0,0.01539]
[1763994350416,0.323,86159.0,86158.0,0.03925]
[1763994350785,0.5,86160.0,86158.0,0.03925]
[1763994350987,0.5,86160.0,86159.0,0.14358271]
[1763994351392,0.5,86160.0,86159.0,0.02275]
[1763994351711,0.5,86160.0,86159.0,0.04661]
[1763994353153,0.5,86160.0,86159.0,0.04761]
[1763994354257,0.5,86160.0,86159.0,0.04961]
[1763994354929,0.5,86160.0,86159.0,0.04761]
[1763994355261,0.5,86160.0,86159.0,0.04861]
[1763994356755,0.5,86160.0,86159.0,0.10071249]
[1763994356975,2.0,86189.0,86165.0,0.01]
[1763994357180,0.323,86189.0,86180.0,0.00965]
[1763994357386,0.323,86189.0,86188.0,0.02504]
[1763994357799,0.323,86189.0,86188.0,0.0489]
[1763994358595,0.323,86189.0,86188.0,0.04898165]
[1763994359723,0.5,86190.0,86188.0,0.04898165]
[1763994359933,0.823,86190.0,86189.0,0.03925]
[1763994362254,0.823,86190.0,86188.0,8.165e-05]
[1763994362792,2.37265,86189.0,86188.0,8.165e-05]
[1763994363167,0.323,86189.0,86188.0,8.165e-05]
[1763994363380,2.37265,86189.0,86188.0,8.165e-05]
[1763994363590,2.37265,86189.0,86188.0,0.00108165]
[1763994363956,2.34981,86189.0,86188.0,8.165e-05]
[1763994364160,2.33425,86189.0,86188.0,8.165e-05]
[1763994364760,2.34981,86189.0,86188.0,8.165e-05]
[1763994364964,2.37265,86189.0,86188.0,8.165e-05]
[1763994366686,2.323,86189.0,86188.0,8.165e-05]
[1763994367769,2.323,86189.0,86188.0,0.01547165]
[1763994367972,2.323,86189.0,86188.0,0.04033165]
[1763994368514,0.01125,86198.0,86188.0,0.04033165]
[1763994368515,0.323,86196.0,86188.0,0.04033165]
[1763994368794,0.323,86194.0,86188.0,0.04033165]
[1763994369020,0.323,86194.0,86188.0,0.00108165]
[1763994369371,0.10433271,86193.0,86188.0,0.00108165]
[1763994369895,0.10433271,86193.0,86188.0,8.165e-05]
[1763994370398,2.0,86197.0,86188.0,8.165e-05]
[1763994372191,0.323,86196.0,86188.0,8.165e-05]
[1763994372413,0.01125,86189.0,86188.0,8.165e-05]
[1763994373729,0.01125,86189.0,86188.0,0.00108165]